[Event "*** Titled Tuesday Blitz"]
[Site "Chess.com"]
[Date "2021.03.16"]
[Round "3"]
[White "UCantHandleDenker"]
[Black "TheCairnTerrier"]
[Result "1-0"]
[WhiteElo "2507"]
[BlackElo "2155"]
[TimeControl "180+1"]
[EndTime "10:27:04 PDT"]
[Termination "UCantHandleDenker won on time"]

1. Nf3 {[%clk 0:03:00.9]} 1... c5 {[%clk 0:02:57.5]} 2. g3 {[%clk 0:02:59.9]}
2... g6 {[%clk 0:02:56.6]} 3. Bg2 {[%clk 0:03:00.7]} 3... Bg7 {[%clk 0:02:57]}
4. O-O {[%clk 0:03:01.1]} 4... Nc6 {[%clk 0:02:56.9]} 5. d3 {[%clk 0:03:01.7]}
5... e5 {[%clk 0:02:54.5]} 6. Nbd2 {[%clk 0:03:02]} 6... Nge7 {[%clk 0:02:54.6]}
7. e4 {[%clk 0:03:01.9]} 7... O-O {[%clk 0:02:53.5]} 8. c3 {[%clk 0:03:02.4]}
8... d5 {[%clk 0:02:51.9]} 9. a3 {[%clk 0:02:59.5]} 9... h6 {[%clk 0:02:44.7]}
10. b4 {[%clk 0:02:32.4]} 10... dxe4 {[%clk 0:02:41.1]} 11. dxe4 {[%clk
0:02:29.8]} 11... cxb4 {[%clk 0:02:40.2]} 12. axb4 {[%clk 0:02:27.4]} 12... Be6
{[%clk 0:02:38.9]} 13. Qe2 {[%clk 0:02:22.4]} 13... Qd7 {[%clk 0:02:15.8]} 14.
b5 {[%clk 0:02:18.6]} 14... Nb8 {[%clk 0:02:06.6]} 15. Ba3 {[%clk 0:02:17]}
15... a6 {[%clk 0:01:59.8]} 16. c4 {[%clk 0:01:58.9]} 16... Rc8 {[%clk
0:01:52.1]} 17. Rfd1 {[%clk 0:01:56.6]} 17... Qe8 {[%clk 0:01:46.5]} 18. Bd6
{[%clk 0:01:45.3]} 18... Nd7 {[%clk 0:01:40.8]} 19. Rdc1 {[%clk 0:01:28.6]}
19... axb5 {[%clk 0:01:04.7]} 20. Rxa8 {[%clk 0:01:29.5]} 20... Rxa8 {[%clk
0:01:03.8]} 21. cxb5 {[%clk 0:01:30]} 21... Ra2 {[%clk 0:01:02.3]} 22. Qd3
{[%clk 0:01:25.8]} 22... Nc8 {[%clk 0:00:53.5]} 23. Bc7 {[%clk 0:01:23]} 23...
Ncb6 {[%clk 0:00:52.2]} 24. Qe3 {[%clk 0:01:10.2]} 24... Na4 {[%clk 0:00:19]}
25. Bf1 {[%clk 0:01:09]} 25... Qa8 {[%clk 0:00:17.7]} 26. Nc4 {[%clk 0:00:59.6]}
26... Nb2 {[%clk 0:00:15.8]} 27. Ncxe5 {[%clk 0:00:56.3]} 27... Nxe5 {[%clk
0:00:04.8]} 28. Bxe5 {[%clk 0:00:55.5]} 1-0

[Event "*** Titled Tuesday Blitz"]
[Site "Chess.com"]
[Date "2021.03.16"]
[Round "3"]
[White "NicoChasin"]
[Black "Aleksandar-Topalov"]
[Result "1-0"]
[WhiteElo "2607"]
[BlackElo "2378"]
[TimeControl "180+1"]
[EndTime "10:27:08 PDT"]
[Termination "NicoChasin won on time"]

1. e4 {[%clk 0:03:00.9]} 1... e6 {[%clk 0:02:36.2]} 2. d4 {[%clk 0:02:59.9]}
2... d5 {[%clk 0:02:35.8]} 3. Nc3 {[%clk 0:02:58.5]} 3... Bb4 {[%clk 0:02:35.2]}
4. e5 {[%clk 0:02:58.2]} 4... Qd7 {[%clk 0:02:35.1]} 5. Qg4 {[%clk 0:02:57.8]}
5... Bf8 {[%clk 0:02:34.4]} 6. Bd3 {[%clk 0:02:57.4]} 6... b6 {[%clk 0:02:33.9]}
7. f4 {[%clk 0:02:55]} 7... h5 {[%clk 0:02:33.5]} 8. Qh3 {[%clk 0:02:52.5]} 8...
Ba6 {[%clk 0:02:33.1]} 9. g4 {[%clk 0:02:47.8]} 9... Bxd3 {[%clk 0:02:32.6]} 10.
cxd3 {[%clk 0:02:46.6]} 10... Nc6 {[%clk 0:02:32.8]} 11. Nge2 {[%clk 0:02:45.5]}
11... Nge7 {[%clk 0:02:24.9]} 12. a3 {[%clk 0:02:42.8]} 12... Rh6 {[%clk
0:02:19.2]} 13. gxh5 {[%clk 0:02:38.2]} 13... Nf5 {[%clk 0:02:16.8]} 14. Be3
{[%clk 0:02:35.9]} 14... g6 {[%clk 0:02:06.7]} 15. Qf3 {[%clk 0:02:32.5]} 15...
Rxh5 {[%clk 0:02:04]} 16. Ng3 {[%clk 0:02:29.4]} 16... Rh3 {[%clk 0:01:49.4]}
17. Qg2 {[%clk 0:02:27.6]} 17... Rxg3 {[%clk 0:01:43.9]} 18. hxg3 {[%clk
0:02:26.9]} 18... Nxe3 {[%clk 0:01:44.2]} 19. Qf2 {[%clk 0:02:27.4]} 19... Nxd4
{[%clk 0:01:38.3]} 20. Rc1 {[%clk 0:02:27.3]} 20... Nec2+ {[%clk 0:00:58.3]} 21.
Rxc2 {[%clk 0:02:12.1]} 21... Nxc2+ {[%clk 0:00:57.3]} 22. Qxc2 {[%clk 0:02:13]}
22... Qc6 {[%clk 0:00:55.4]} 23. Kd1 {[%clk 0:02:07.6]} 23... O-O-O {[%clk
0:00:52.3]} 24. Rh7 {[%clk 0:02:04.5]} 24... Qc5 {[%clk 0:00:41.9]} 25. Ne2
{[%clk 0:01:57.5]} 25... Qe3 {[%clk 0:00:35.5]} 26. Rxf7 {[%clk 0:01:56.3]}
26... Bc5 {[%clk 0:00:34.4]} 27. b4 {[%clk 0:01:55.4]} 27... Rh8 {[%clk
0:00:33]} 28. Qd2 {[%clk 0:01:54.3]} 28... Qf2 {[%clk 0:00:26.2]} 29. bxc5
{[%clk 0:01:53.3]} 29... Rh1+ {[%clk 0:00:22]} 30. Kc2 {[%clk 0:01:53.2]} 30...
Qf1 {[%clk 0:00:22.1]} 31. Nc3 {[%clk 0:01:47.1]} 31... Qa1 {[%clk 0:00:19.8]}
32. Kb3 {[%clk 0:01:43.1]} 32... d4 {[%clk 0:00:17.7]} 33. c6 {[%clk 0:01:31.3]}
33... Kd8 {[%clk 0:00:13]} 34. f5 {[%clk 0:01:12.9]} 34... Rb1+ {[%clk
0:00:03.1]} 35. Nxb1 {[%clk 0:01:12.4]} 35... Qxb1+ {[%clk 0:00:03.2]} 36. Kc4
{[%clk 0:01:12.9]} 36... b5+ {[%clk 0:00:01.5]} 37. Kxd4 {[%clk 0:01:13.1]} 1-0

[Event "*** Titled Tuesday Blitz"]
[Site "Chess.com"]
[Date "2021.03.16"]
[Round "3"]
[White "ChrisTool2"]
[Black "nss13"]
[Result "0-1"]
[WhiteElo "2336"]
[BlackElo "2616"]
[TimeControl "180+1"]
[EndTime "10:27:09 PDT"]
[Termination "nss13 won by resignation"]

1. d4 {[%clk 0:02:50.4]} 1... d5 {[%clk 0:02:59]} 2. c4 {[%clk 0:02:50.2]} 2...
c6 {[%clk 0:02:56.5]} 3. Nf3 {[%clk 0:02:49.3]} 3... Nf6 {[%clk 0:02:50.1]} 4.
Nc3 {[%clk 0:02:49.7]} 4... dxc4 {[%clk 0:02:50.5]} 5. a4 {[%clk 0:02:49.3]}
5... Bf5 {[%clk 0:02:49.9]} 6. Ne5 {[%clk 0:02:48.5]} 6... Nbd7 {[%clk
0:02:50.2]} 7. Nxc4 {[%clk 0:02:48.6]} 7... Nb6 {[%clk 0:02:49.5]} 8. Ne5 {[%clk
0:02:49.1]} 8... a5 {[%clk 0:02:50.1]} 9. g3 {[%clk 0:02:41.9]} 9... e6 {[%clk
0:02:46.5]} 10. Bg2 {[%clk 0:02:41.7]} 10... Bb4 {[%clk 0:02:47.2]} 11. O-O
{[%clk 0:02:41.1]} 11... O-O {[%clk 0:02:46.8]} 12. Bg5 {[%clk 0:02:27.5]} 12...
h6 {[%clk 0:02:40.8]} 13. Bxf6 {[%clk 0:02:26.5]} 13... Qxf6 {[%clk 0:02:41.7]}
14. e3 {[%clk 0:02:21.7]} 14... Rfd8 {[%clk 0:02:22.5]} 15. Qe2 {[%clk
0:02:18.2]} 15... Bh7 {[%clk 0:02:18.7]} 16. f4 {[%clk 0:02:05.9]} 16... Qe7
{[%clk 0:02:10.7]} 17. Ne4 {[%clk 0:01:58.1]} 17... Bxe4 {[%clk 0:02:07.2]} 18.
Bxe4 {[%clk 0:01:57.4]} 18... c5 {[%clk 0:02:07.8]} 19. Qb5 {[%clk 0:01:44.3]}
19... Nd5 {[%clk 0:02:05.2]} 20. Bxd5 {[%clk 0:01:36.6]} 20... Rxd5 {[%clk
0:02:06.1]} 21. Rad1 {[%clk 0:01:28.8]} 21... cxd4 {[%clk 0:02:05.1]} 22. Qc4
{[%clk 0:01:24.9]} 22... dxe3 {[%clk 0:01:56.9]} 23. Rxd5 {[%clk 0:01:16]} 23...
exd5 {[%clk 0:01:57.8]} 24. Qd3 {[%clk 0:01:08.3]} 24... e2 {[%clk 0:01:39.6]}
25. Qxe2 {[%clk 0:01:04.5]} 25... f6 {[%clk 0:01:40.2]} 26. Qd3 {[%clk
0:01:01.8]} 26... fxe5 {[%clk 0:01:39.8]} 27. Qxd5+ {[%clk 0:01:01.8]} 27... Kh8
{[%clk 0:01:38.5]} 28. fxe5 {[%clk 0:01:01.7]} 28... Rd8 {[%clk 0:01:39]} 29.
Qe4 {[%clk 0:00:59.8]} 29... Rd4 {[%clk 0:01:28.5]} 30. Qf5 {[%clk 0:00:54.9]}
30... Rd5 {[%clk 0:01:18.5]} 31. Qc8+ {[%clk 0:00:45.2]} 31... Kh7 {[%clk
0:01:19]} 32. Qf5+ {[%clk 0:00:41.4]} 32... g6 {[%clk 0:01:13.6]} 33. Qc8 {[%clk
0:00:22.3]} 33... Qc5+ {[%clk 0:01:10.3]} 34. Qxc5 {[%clk 0:00:19.6]} 34...
Bxc5+ {[%clk 0:01:11.2]} 35. Kg2 {[%clk 0:00:20.1]} 35... Rxe5 {[%clk
0:01:08.6]} 36. Rf7+ {[%clk 0:00:20.3]} 36... Kg8 {[%clk 0:01:08.6]} 37. Rxb7
{[%clk 0:00:21.1]} 37... Bb4 {[%clk 0:01:09.3]} 38. Kf3 {[%clk 0:00:20.1]} 38...
Re7 {[%clk 0:01:06.9]} 39. Rb6 {[%clk 0:00:19.5]} 39... Kg7 {[%clk 0:01:06.8]}
40. h4 {[%clk 0:00:19.7]} 40... h5 {[%clk 0:01:06.8]} 41. Kf4 {[%clk 0:00:19.7]}
41... Rf7+ {[%clk 0:01:03.4]} 0-1

[Event "*** Titled Tuesday Blitz"]
[Site "Chess.com"]
[Date "2021.03.16"]
[Round "3"]
[White "FairChess_on_YouTube"]
[Black "Dyadya81"]
[Result "1-0"]
[WhiteElo "2979"]
[BlackElo "2739"]
[TimeControl "180+1"]
[EndTime "10:27:13 PDT"]
[Termination "FairChess_on_YouTube won by resignation"]

1. e4 {[%clk 0:03:00.9]} 1... c6 {[%clk 0:02:58.9]} 2. Nf3 {[%clk 0:03:00.1]}
2... d5 {[%clk 0:02:59.1]} 3. d3 {[%clk 0:03:00.7]} 3... Bg4 {[%clk 0:02:57.7]}
4. h3 {[%clk 0:02:59.7]} 4... Bh5 {[%clk 0:02:54.3]} 5. g4 {[%clk 0:02:57.8]}
5... Bg6 {[%clk 0:02:52]} 6. h4 {[%clk 0:02:58.4]} 6... dxe4 {[%clk 0:02:35.3]}
7. h5 {[%clk 0:02:57.8]} 7... Bxh5 {[%clk 0:02:33.6]} 8. Ne5 {[%clk 0:02:56.5]}
8... Qa5+ {[%clk 0:01:56]} 9. Nc3 {[%clk 0:02:56.3]} 9... Qxe5 {[%clk
0:01:49.6]} 10. Rxh5 {[%clk 0:02:55.7]} 10... Qe6 {[%clk 0:01:50.1]} 11. g5
{[%clk 0:02:48.1]} 11... exd3+ {[%clk 0:00:52.4]} 12. Be3 {[%clk 0:02:47.6]}
12... f5 {[%clk 0:00:52.8]} 13. Qxd3 {[%clk 0:02:10.6]} 13... f4 {[%clk
0:00:52.1]} 14. O-O-O {[%clk 0:01:58.9]} 14... fxe3 {[%clk 0:00:48.1]} 15. g6
{[%clk 0:01:18.1]} 15... Nd7 {[%clk 0:00:24.6]} 16. Rxh7 {[%clk 0:01:17.4]}
16... Ngf6 {[%clk 0:00:22.9]} 17. Rxh8 {[%clk 0:01:14.8]} 17... O-O-O {[%clk
0:00:22.2]} 18. Bh3 {[%clk 0:01:12.3]} 18... Qe5 {[%clk 0:00:19.6]} 19. Qxe3
{[%clk 0:00:53.3]} 19... Qxe3+ {[%clk 0:00:18.2]} 20. fxe3 {[%clk 0:00:54.2]}
20... Kc7 {[%clk 0:00:18.6]} 21. Bxd7 {[%clk 0:00:53.9]} 21... Nxd7 {[%clk
0:00:18.3]} 22. Ne4 {[%clk 0:00:54]} 22... e5 {[%clk 0:00:10.7]} 23. Ng5 {[%clk
0:00:52.2]} 23... Re8 {[%clk 0:00:11.2]} 24. Nh7 {[%clk 0:00:49.5]} 24... e4
{[%clk 0:00:08.1]} 25. Nxf8 {[%clk 0:00:43.6]} 25... Nxf8 {[%clk 0:00:07.7]} 26.
Rf1 {[%clk 0:00:43.2]} 1-0

[Event "*** Titled Tuesday Blitz"]
[Site "Chess.com"]
[Date "2021.03.16"]
[Round "3"]
[White "NishaOnYoutube"]
[Black "dosto07"]
[Result "0-1"]
[WhiteElo "2033"]
[BlackElo "2364"]
[TimeControl "180+1"]
[EndTime "10:27:33 PDT"]
[Termination "dosto07 won on time"]

1. d4 {[%clk 0:03:00.9]} 1... d5 {[%clk 0:02:58.4]} 2. c4 {[%clk 0:03:00.9]}
2... dxc4 {[%clk 0:02:59.3]} 3. Nf3 {[%clk 0:02:59.3]} 3... Nf6 {[%clk
0:02:59.7]} 4. e3 {[%clk 0:02:59.9]} 4... e6 {[%clk 0:02:59.7]} 5. Bxc4 {[%clk
0:03:00.1]} 5... c5 {[%clk 0:03:00.2]} 6. O-O {[%clk 0:03:00.3]} 6... a6 {[%clk
0:02:59]} 7. Bb3 {[%clk 0:02:59.6]} 7... Nc6 {[%clk 0:02:58.9]} 8. Nc3 {[%clk
0:02:53.3]} 8... Be7 {[%clk 0:02:58.7]} 9. Qe2 {[%clk 0:02:53.2]} 9... cxd4
{[%clk 0:02:56.2]} 10. Rd1 {[%clk 0:02:49.3]} 10... e5 {[%clk 0:02:56.1]} 11.
exd4 {[%clk 0:02:27.1]} 11... exd4 {[%clk 0:02:55.5]} 12. Be3 {[%clk 0:02:07]}
12... Bg4 {[%clk 0:02:48.6]} 13. h3 {[%clk 0:00:59.4]} 13... Bxf3 {[%clk
0:02:45.7]} 14. Qxf3 {[%clk 0:00:59.5]} 14... O-O {[%clk 0:02:44.7]} 15. Ne2
{[%clk 0:00:53.8]} 15... Bc5 {[%clk 0:02:31.7]} 16. Rac1 {[%clk 0:00:50.2]}
16... Qe7 {[%clk 0:02:21]} 17. Bg5 {[%clk 0:00:42.6]} 17... Ba7 {[%clk
0:02:08.8]} 18. Ng3 {[%clk 0:00:31.8]} 18... h6 {[%clk 0:02:06.6]} 19. Bxf6
{[%clk 0:00:30.8]} 19... Qxf6 {[%clk 0:02:06.4]} 20. Qxf6 {[%clk 0:00:30.7]}
20... gxf6 {[%clk 0:02:06.8]} 21. Nf5 {[%clk 0:00:27.7]} 21... h5 {[%clk
0:01:55.7]} 22. Rd3 {[%clk 0:00:21.2]} 22... Ne5 {[%clk 0:01:37]} 23. Rg3+
{[%clk 0:00:20.5]} 23... Kh8 {[%clk 0:01:36.3]} 24. Nd6 {[%clk 0:00:19.2]} 24...
h4 {[%clk 0:01:29.9]} 25. Rg4 {[%clk 0:00:07.4]} 25... Nxg4 {[%clk 0:01:28.5]}
26. hxg4 {[%clk 0:00:08.3]} 26... Kg7 {[%clk 0:01:23.8]} 27. Rc7 {[%clk
0:00:08.2]} 27... Bb8 {[%clk 0:01:20.7]} 28. Rxf7+ {[%clk 0:00:06.7]} 28... Rxf7
{[%clk 0:01:19.6]} 29. Nxf7 {[%clk 0:00:07.6]} 29... Bf4 {[%clk 0:01:16]} 30.
Kf1 {[%clk 0:00:06.9]} 30... d3 {[%clk 0:01:15.2]} 31. Ke1 {[%clk 0:00:06.4]}
31... d2+ {[%clk 0:01:15]} 32. Kd1 {[%clk 0:00:06.5]} 32... Rc8 {[%clk
0:01:14.9]} 33. Ke2 {[%clk 0:00:01.7]} 33... Rc1 {[%clk 0:01:13.5]} 34. Nd8
{[%clk 0:00:01.6]} 34... Re1+ {[%clk 0:00:57.6]} 35. Kf3 {[%clk 0:00:01.8]}
35... Bc7 {[%clk 0:00:52.1]} 36. Ne6+ {[%clk 0:00:01.2]} 36... Rxe6 {[%clk
0:00:50.7]} 0-1

[Event "*** Titled Tuesday Blitz"]
[Site "Chess.com"]
[Date "2021.03.16"]
[Round "3"]
[White "Bhagya_2312"]
[Black "organdzievhren"]
[Result "0-1"]
[WhiteElo "2243"]
[BlackElo "2425"]
[TimeControl "180+1"]
[EndTime "10:27:34 PDT"]
[Termination "organdzievhren won by checkmate"]

1. e4 {[%clk 0:03:00.9]} 1... e6 {[%clk 0:02:59.9]} 2. d4 {[%clk 0:02:56.3]}
2... d5 {[%clk 0:03:00.8]} 3. e5 {[%clk 0:02:56]} 3... c5 {[%clk 0:03:00.4]} 4.
c3 {[%clk 0:02:54.5]} 4... Ne7 {[%clk 0:03:00]} 5. Nf3 {[%clk 0:02:53.9]} 5...
Nec6 {[%clk 0:02:59.9]} 6. Be2 {[%clk 0:02:53.3]} 6... b6 {[%clk 0:02:59.9]} 7.
O-O {[%clk 0:02:53.6]} 7... Ba6 {[%clk 0:02:59.6]} 8. Bxa6 {[%clk 0:02:51.6]}
8... Nxa6 {[%clk 0:03:00.5]} 9. Qe2 {[%clk 0:02:51.6]} 9... Nc7 {[%clk 0:02:59]}
10. Be3 {[%clk 0:02:51]} 10... Qc8 {[%clk 0:02:58.5]} 11. Nbd2 {[%clk 0:02:50]}
11... Qa6 {[%clk 0:02:57.1]} 12. c4 {[%clk 0:02:48.4]} 12... Be7 {[%clk
0:02:56]} 13. b3 {[%clk 0:02:46.9]} 13... Rd8 {[%clk 0:02:53.7]} 14. Rfe1 {[%clk
0:02:38.7]} 14... cxd4 {[%clk 0:02:52.6]} 15. Nxd4 {[%clk 0:02:34.5]} 15... Nxd4
{[%clk 0:02:45.4]} 16. Bxd4 {[%clk 0:02:31.1]} 16... dxc4 {[%clk 0:02:45.5]} 17.
Qg4 {[%clk 0:02:24.2]} 17... O-O {[%clk 0:02:41]} 18. Nxc4 {[%clk 0:02:22.9]}
18... b5 {[%clk 0:02:26.4]} 19. Ne3 {[%clk 0:02:12.5]} 19... Nd5 {[%clk
0:02:23.7]} 20. Red1 {[%clk 0:02:00.3]} 20... h6 {[%clk 0:02:11.4]} 21. h3
{[%clk 0:01:56.5]} 21... Bg5 {[%clk 0:02:06.1]} 22. Bc5 {[%clk 0:01:52.6]} 22...
Nxe3 {[%clk 0:02:01.3]} 23. fxe3 {[%clk 0:01:51.8]} 23... Rxd1+ {[%clk
0:01:58.3]} 24. Rxd1 {[%clk 0:01:51]} 24... Rc8 {[%clk 0:01:50.8]} 25. b4 {[%clk
0:01:49.9]} 25... Qa3 {[%clk 0:01:41.4]} 26. Qf3 {[%clk 0:01:46.5]} 26... Qxa2
{[%clk 0:01:29.1]} 27. Rd7 {[%clk 0:01:45.1]} 27... Qa1+ {[%clk 0:01:28.9]} 28.
Kf2 {[%clk 0:01:42]} 28... Qb2+ {[%clk 0:01:24.1]} 29. Kg1 {[%clk 0:01:41.2]}
29... Qa1+ {[%clk 0:01:17.2]} 30. Kf2 {[%clk 0:01:40.1]} 30... f6 {[%clk
0:01:14.7]} 31. exf6 {[%clk 0:01:37.3]} 31... Bh4+ {[%clk 0:01:07.5]} 32. g3
{[%clk 0:01:35.3]} 32... Bxf6 {[%clk 0:01:06.8]} 33. Qe4 {[%clk 0:01:32.6]}
33... Qb2+ {[%clk 0:00:58.8]} 34. Kf3 {[%clk 0:01:31.8]} 34... Qb3 {[%clk
0:00:41.1]} 35. Rxa7 {[%clk 0:01:27.8]} 35... Qd1+ {[%clk 0:00:34.5]} 36. Kf2
{[%clk 0:01:26.7]} 36... Rd8 {[%clk 0:00:30.6]} 37. Qxe6+ {[%clk 0:01:25.4]}
37... Kh8 {[%clk 0:00:28.3]} 38. Bd4 {[%clk 0:01:23.9]} 38... Rxd4 {[%clk
0:00:22.1]} 39. exd4 {[%clk 0:01:22]} 39... Bxd4+ {[%clk 0:00:21.1]} 40. Kg2
{[%clk 0:01:21.8]} 40... Qd2+ {[%clk 0:00:20.8]} 41. Kf3 {[%clk 0:01:21]} 41...
Qf2+ {[%clk 0:00:20.2]} 42. Kg4 {[%clk 0:01:20.1]} 42... Bxa7 {[%clk 0:00:21.1]}
43. Qe8+ {[%clk 0:01:18.4]} 43... Kh7 {[%clk 0:00:21.4]} 44. Qe4+ {[%clk
0:01:17.7]} 44... g6 {[%clk 0:00:21.7]} 45. Qe7+ {[%clk 0:01:16.8]} 45... Kg8
{[%clk 0:00:21.9]} 46. Qe6+ {[%clk 0:01:15.2]} 46... Qf7 {[%clk 0:00:21.3]} 47.
Qc8+ {[%clk 0:01:14.5]} 47... Kg7 {[%clk 0:00:20.6]} 48. Qc3+ {[%clk 0:01:13.4]}
48... Kh7 {[%clk 0:00:19.7]} 49. Qc6 {[%clk 0:01:11.4]} 49... Qf5+ {[%clk
0:00:19.1]} 50. Kh4 {[%clk 0:01:11.1]} 50... Qg5# {[%clk 0:00:19.1]} 0-1

[Event "*** Titled Tuesday Blitz"]
[Site "Chess.com"]
[Date "2021.03.16"]
[Round "3"]
[White "Alekseyviktorovich"]
[Black "BahadirOzen"]
[Result "0-1"]
[WhiteElo "2416"]
[BlackElo "2781"]
[TimeControl "180+1"]
[EndTime "10:27:37 PDT"]
[Termination "BahadirOzen won by resignation"]

1. e4 {[%clk 0:03:00]} 1... g6 {[%clk 0:03:00.2]} 2. d4 {[%clk 0:02:56.6]} 2...
Bg7 {[%clk 0:03:00.3]} 3. Nc3 {[%clk 0:02:56.3]} 3... d6 {[%clk 0:03:00.3]} 4.
Nf3 {[%clk 0:02:56.1]} 4... Nf6 {[%clk 0:02:58.9]} 5. Be2 {[%clk 0:02:55.5]}
5... O-O {[%clk 0:02:58.9]} 6. O-O {[%clk 0:02:55]} 6... e6 {[%clk 0:02:59.4]}
7. Re1 {[%clk 0:02:51.8]} 7... Nc6 {[%clk 0:02:59.3]} 8. Bf1 {[%clk 0:02:50.1]}
8... a6 {[%clk 0:02:59.7]} 9. a4 {[%clk 0:02:49.3]} 9... b6 {[%clk 0:03:00.2]}
10. h3 {[%clk 0:02:45.5]} 10... Bb7 {[%clk 0:02:59.8]} 11. Bg5 {[%clk
0:02:40.5]} 11... h6 {[%clk 0:02:59.5]} 12. Bf4 {[%clk 0:02:39.1]} 12... Ne7
{[%clk 0:02:56.2]} 13. Qd2 {[%clk 0:02:32.1]} 13... Kh7 {[%clk 0:02:56.3]} 14.
g4 {[%clk 0:02:29.2]} 14... Nd7 {[%clk 0:02:18.3]} 15. Bg2 {[%clk 0:02:26]}
15... e5 {[%clk 0:02:16.2]} 16. Bg3 {[%clk 0:02:14.7]} 16... Nc6 {[%clk
0:01:47.9]} 17. dxe5 {[%clk 0:02:10.4]} 17... Ndxe5 {[%clk 0:01:44.6]} 18. Nxe5
{[%clk 0:02:00.9]} 18... Nxe5 {[%clk 0:01:26.8]} 19. b3 {[%clk 0:02:00.2]} 19...
Re8 {[%clk 0:01:26.8]} 20. Rad1 {[%clk 0:01:59.1]} 20... Nd7 {[%clk 0:01:16.5]}
21. Nd5 {[%clk 0:01:56.4]} 21... b5 {[%clk 0:01:06.9]} 22. f4 {[%clk 0:01:48.7]}
22... Bxd5 {[%clk 0:01:02.9]} 23. Qxd5 {[%clk 0:01:44]} 23... Qe7 {[%clk
0:00:57.6]} 24. e5 {[%clk 0:01:39.4]} 24... Nb6 {[%clk 0:00:57]} 25. Qd3 {[%clk
0:01:34.8]} 25... dxe5 {[%clk 0:00:56.6]} 26. Bxa8 {[%clk 0:01:31.6]} 26... Rxa8
{[%clk 0:00:56.9]} 27. axb5 {[%clk 0:01:29.3]} 27... Qc5+ {[%clk 0:00:51.3]} 28.
Bf2 {[%clk 0:01:26.5]} 28... Qxb5 {[%clk 0:00:51.7]} 29. fxe5 {[%clk 0:01:26.6]}
29... Qc6 {[%clk 0:00:49.5]} 30. c4 {[%clk 0:01:22.3]} 30... Re8 {[%clk
0:00:47.4]} 31. Bg3 {[%clk 0:01:15.7]} 31... Qc5+ {[%clk 0:00:46.3]} 32. Kh2
{[%clk 0:01:13.9]} 32... Qb4 {[%clk 0:00:36.3]} 33. e6 {[%clk 0:01:07.9]} 33...
Rxe6 {[%clk 0:00:35.6]} 34. Rxe6 {[%clk 0:01:07.4]} 34... fxe6 {[%clk
0:00:36.5]} 35. Re1 {[%clk 0:01:02.8]} 35... e5 {[%clk 0:00:33.7]} 36. Bxe5
{[%clk 0:00:58.9]} 36... Qxe1 {[%clk 0:00:32.9]} 37. Bxg7 {[%clk 0:00:56.6]}
37... Kxg7 {[%clk 0:00:33.3]} 38. Qd4+ {[%clk 0:00:54.2]} 38... Kh7 {[%clk
0:00:32.9]} 39. c5 {[%clk 0:00:52.5]} 39... Qe2+ {[%clk 0:00:31.4]} 40. Kh1
{[%clk 0:00:51.1]} 40... Qf1+ {[%clk 0:00:30.5]} 41. Kh2 {[%clk 0:00:51]} 41...
Qe2+ {[%clk 0:00:30.7]} 42. Kh1 {[%clk 0:00:51.2]} 42... Qf3+ {[%clk 0:00:31.1]}
43. Kh2 {[%clk 0:00:50.7]} 43... Nd5 {[%clk 0:00:32]} 44. Qe5 {[%clk 0:00:47.6]}
44... Qf4+ {[%clk 0:00:32]} 45. Qxf4 {[%clk 0:00:47.4]} 45... Nxf4 {[%clk
0:00:32.9]} 46. Kg3 {[%clk 0:00:48]} 46... Nd3 {[%clk 0:00:33.3]} 47. Kf3 {[%clk
0:00:42.5]} 47... Nxc5 {[%clk 0:00:32.8]} 0-1

[Event "*** Titled Tuesday Blitz"]
[Site "Chess.com"]
[Date "2021.03.16"]
[Round "3"]
[White "lagedema"]
[Black "dpopadic"]
[Result "0-1"]
[WhiteElo "2456"]
[BlackElo "2335"]
[TimeControl "180+1"]
[EndTime "10:27:37 PDT"]
[Termination "dpopadic won on time"]

1. d4 {[%clk 0:03:00.9]} 1... Nf6 {[%clk 0:02:59.9]} 2. Bg5 {[%clk 0:03:01.1]}
2... d5 {[%clk 0:02:59.5]} 3. Bxf6 {[%clk 0:02:59.8]} 3... gxf6 {[%clk
0:02:59.5]} 4. e3 {[%clk 0:03:00.7]} 4... c5 {[%clk 0:02:59]} 5. c4 {[%clk
0:03:01.3]} 5... cxd4 {[%clk 0:02:43.4]} 6. exd4 {[%clk 0:03:00.5]} 6... Nc6
{[%clk 0:02:35.7]} 7. Nc3 {[%clk 0:02:55.9]} 7... dxc4 {[%clk 0:02:26.7]} 8. d5
{[%clk 0:02:56.8]} 8... Ne5 {[%clk 0:02:26.6]} 9. f4 {[%clk 0:02:53.4]} 9...
Nd3+ {[%clk 0:02:23.8]} 10. Bxd3 {[%clk 0:02:53.8]} 10... cxd3 {[%clk
0:02:23.8]} 11. Qxd3 {[%clk 0:02:53]} 11... Bg7 {[%clk 0:02:22.2]} 12. Nge2
{[%clk 0:02:52.6]} 12... O-O {[%clk 0:02:19.4]} 13. O-O {[%clk 0:02:52.7]} 13...
Qb6+ {[%clk 0:02:19.2]} 14. Kh1 {[%clk 0:02:53.1]} 14... Qxb2 {[%clk 0:02:17.2]}
15. Rab1 {[%clk 0:02:51.7]} 15... Qa3 {[%clk 0:02:17.2]} 16. f5 {[%clk 0:02:42]}
16... b6 {[%clk 0:02:10.7]} 17. Rb3 {[%clk 0:02:36.7]} 17... Qd6 {[%clk
0:02:01.6]} 18. Ng3 {[%clk 0:02:31.3]} 18... Kh8 {[%clk 0:01:57.3]} 19. Nge4
{[%clk 0:02:30.5]} 19... Qe5 {[%clk 0:01:51.7]} 20. d6 {[%clk 0:02:20.8]} 20...
exd6 {[%clk 0:01:30.6]} 21. Nxd6 {[%clk 0:01:53.5]} 21... Bd7 {[%clk 0:01:23.8]}
22. Nc4 {[%clk 0:01:22.1]} 22... Qe8 {[%clk 0:01:09.3]} 23. Nd5 {[%clk
0:01:19.7]} 23... Rd8 {[%clk 0:00:58]} 24. Qg3 {[%clk 0:00:52.1]} 24... Bc6
{[%clk 0:00:45.6]} 25. Nf4 {[%clk 0:00:48.2]} 25... Rg8 {[%clk 0:00:37]} 26. Re3
{[%clk 0:00:45.3]} 26... Qd7 {[%clk 0:00:34.7]} 27. Qh3 {[%clk 0:00:44.8]} 27...
Bb5 {[%clk 0:00:32.1]} 28. Rc3 {[%clk 0:00:39.6]} 28... Rc8 {[%clk 0:00:27.3]}
0-1